Cogmind - Beta 15 @@@ ROGUE MODE // 2025.10.10 @ 20:18:54 Player: Galactipunk Result: Destroyed by as-44999 with Assembled Heavy Rifle Performance ------------- Evolutions (0) 0 Regions Visited (0) 0 Robots Destroyed (0) 0 Value Destroyed (0) 0 Prototype IDs (0) 0 Alien Tech Used (0) 0 Bonus (0) 0 TOTAL SCORE: 0 Bonus ------- None Cogmind --------- Core Integrity 0/250 Matter 266/300 Energy 250/250 System Corruption 0% Temperature Cool (0) Movement Core (200) Ox3 Location -11/Scrapyard Parts ------- > --- POWER (1) -------- Ion Engine > --- PROPULSION (2) --- (None) > --- UTILITY (2) ------ Small Storage Unit > --- WEAPON (2) ------- (None) > --- INVENTORY (8) ---- (None) Peak State ------------ > --- POWER ------------ Ion Engine > --- PROPULSION ------- Aluminum Leg Aluminum Leg > --- UTILITY ---------- Small Storage Unit > --- WEAPON ----------- Medium Laser Light Assault Rifle > --- INVENTORY -------- (None) [Rating: 6] Favorites ----------- Power Ion Engine Engine Ion Engine Propulsion Aluminum Leg Treads Light Treads Leg Aluminum Leg Utility Small Storage Unit Storage Small Storage Unit Weapon Light Assault Rifle Energy Gun Medium Laser Ballistic Gun Light Assault Rifle Build | -11 ------- Run | Yrd Slots Evolved . | . Power . | . Propulsion . | . Utility . | . Weapon . | . Parts Attached 8 | 8 Power 1 | 1 Engine 1 | 1 Core . | . Reactor . | . Propulsion 4 | 4 Treads 2 | 2 Leg 2 | 2 Wheel . | . Hover . | . Flight . | . Utility 1 | 1 Device . | . Storage 1 | 1 Processor . | . Hackware . | . Protection . | . Artifact . | . Weapon 2 | 2 Energy Gun 1 | 1 Energy Cannon . | . Ballistic Gun 1 | 1 Ballistic Cannon . | . Launcher . | . Special Weapon . | . Impact Weapon . | . Slashing Weapon . | . Piercing Weapon . | . Special Melee Weapon . | . Unidentified Prototypes . | . Parts Lost 4 | 4 Power . | . Propulsion 2 | 2 Utility . | . Weapon 2 | 2 Highest Loss Streak 2 | 2 To Critical Strikes . | . Average Backups . | . Power . | . Propulsion . | . Utility . | . Weapon . | . Tool/Special . | . Unused Backups 1 | 1 Power . | . Propulsion . | . Utility . | . Weapon 1 | 1 Tool/Special . | . Average Slot Usage (%) . | . Peak Build Rating 6 | 6 Average Rating 5 | 5 On Entrance . | . Naked Turns . | . Heaviest Build 13 | 13 Greatest Support 40 | 40 Greatest Overweight (x) 1 | 1 Average Overweight (x) . | . Largest Inventory Capacity 8 | 8 Average Capacity 7 | 7 Most Carried 2 | 2 Average Carried . | . Final Capacity 8 | 8 Final Carried . | . Class Distribution -------------------- None Dominant Class ---------------- None Resources | -11 ----------- Run | Yrd Matter Collected 232 | 232 Remotely . | . Salvage Created . | . Parts . | . Haulers Intercepted . | . Recyclers Shooed . | . Parts Field Recycled . | . Retrieved Matter . | . Parts Self-Destructed . | . Prevented . | . Kills | -11 ------- Run | Yrd Combat Hostiles Destroyed . | . Classes Destroyed . | . Best Kill Streak . | . Combat Bots Only . | . Max Kills in Single Turn . | . Gunslinging . | . Exploded . | . Melee . | . Uniques/NPCs Destroyed . | . Combat | -11 -------- Run | Yrd Hostile Shots Fired 35 | 35 Missed 4 | 4 Hits 31 | 31 Projectile 31 | 31 AOE 9 | 9 Damage Taken 699 | 699 Core 252 | 252 Absorbed by Shields . | . Core Remaining (%) . | . Volleys Fired 6 | 6 Largest 1 | 1 Hottest 20 | 20 Shots Fired 6 | 6 Gun 6 | 6 Cannon . | . Launcher . | . Special . | . Kinetic 6 | 6 Thermal . | . Explosive . | . Electromagnetic . | . Robot Hit Streak 1 | 1 Robot Miss Streak 3 | 3 Penetration Max . | . Secondary Targets . | . Shots Hit Robots 1 | 1 Core Hits 1 | 1 Critical Kills . | . Critical Parts Destroyed . | . Critical Strikes . | . Melee Attacks . | . Impact . | . Slashing . | . Piercing . | . Sneak Attacks . | . Combat Hostiles . | . Follow-up Attacks . | . Damage Inflicted 8 | 8 Guns 8 | 8 Cannons . | . Explosions . | . Melee . | . Ramming . | . Kinetic 8 | 8 Thermal . | . Explosive . | . Electromagnetic . | . Impact . | . Slashing . | . Piercing . | . Highest Corruption . | . Average Corruption . | . Corruption Purged . | . Corruption Blocked . | . Overload Shots . | . Overflow Damage . | . Projectiles . | . Explosions . | . Melee . | . Knockbacks . | . Impact . | . Kinetic . | . Secondary . | . Self-Inflicted Damage . | . Shots . | . Rammed . | . Targets Rammed . | . Kicked . | . Crushed . | . Highest Temperature . | . Average Temperature . | . Received Heat Transfer 20 | 20 Siege Activations . | . Martial Activations . | . Shielding Activations . | . Robots Disrupted . | . Combat Hostiles . | . Robots Corrupted . | . Combat Hostiles . | . Parts Fried . | . Impact Corruptions . | . Robots Melted . | . Combat Hostiles . | . Parts Melted . | . Heat Transferred . | . Parts Sabotaged . | . Parts Stolen . | . Parts Stripped . | . Power Chain Reactions . | . Alert | -11 ------- Run | Yrd Maximum Alert Level . | . Low Security (%) 100 | 100 Level 1 . | . Level 2 . | . Level 3 . | . Level 4 . | . Level 5 . | . High Security . | . Max Security . | . Peak Influence . | . Initial . | . Average . | . Influence Increases . | . Influence Decreases . | . Squads Dispatched . | . Investigation . | . Extermination . | . Reinforcement . | . Assault . | . Garrison . | . Intercept . | . Searches Triggered . | . Construction Impeded . | . Haulers Reinforced . | . Active Scanning Responses . | . Cargo Convoy Interrupts . | . Stealth | -11 --------- Run | Yrd Distress Signals . | . Communications Jammed . | . Distress Signals . | . Times Spotted 16 | 16 Peak Tracking Total 22 | 22 Tactical Retreats 2 | 2 Traps | -11 ------- Run | Yrd Traps Triggered . | . Indirectly . | . Trap Hack Attempts . | . Triggered . | . Disarmed . | . Reprogrammed . | . Reused . | . Traps Extracted . | . Installed . | . Triggered . | . Machines | -11 ---------- Run | Yrd Machines Disabled . | . Max in Single Turn . | . Machines Repaired . | . Machines Dismantled . | . Machines Sabotaged . | . Overloaded Fab Kills . | . Hacking | -11 --------- Run | Yrd Machines Accessed . | . Terminals . | . Fabricators . | . Repair Stations . | . Recycling Units . | . Scanalyzers . | . Garrison Access . | . Total Hacks . | . Successful . | . Failed . | . Catastrophic . | . Database Lockouts . | . Manual . | . Terminals . | . Fabricators . | . Repair Stations . | . Recycling Units . | . Scanalyzers . | . Garrison Access . | . Terminal Hacks . | . Fabricator Hacks . | . Repair Station Hacks . | . Recycling Unit Hacks . | . Scanalyzer . | . Garrison Access Hacks . | . Unauthorized Hacks . | . Terminals . | . Fabricators . | . Repair Stations . | . Recycling Units . | . Scanalyzers . | . Garrison Access . | . Data Cores Recovered . | . Used . | . Hacking Detections . | . Full Trace Events . | . Feedback Events . | . Feedback Blocked . | . Robot Schematics Acquired . | . Robots Built . | . Authchips . | . Time . | . Total Robot Build Rating . | . Part Schematics Acquired . | . Parts Built . | . Authchips . | . Time . | . Total Part Build Rating . | . Parts Repaired . | . Time . | . Parts Recycled . | . Recycled Matter . | . Retrieved Matter . | . Retrieved Components . | . Parts Scanalyzed . | . Part Schematics Acquired . | . Parts Damaged . | . Bothacking | -11 ------------ Run | Yrd Used RIF Installer . | . Robots Hacked . | . Non-combat . | . Combat . | . Robot Hacks Applied . | . Relay Couplers Released . | . Fabnet Peak Effective % . | . Robots Rewired . | . Allies Hacked . | . Hacks Repelled . | . Allies | -11 -------- Run | Yrd Total Allies . | . Largest Group . | . Highest-Rated Group . | . Highest-Rated Ally . | . Total Orders . | . Ally Attacks . | . Total Damage . | . Kills . | . Allies Corrupted . | . Allies Melted . | . Intel | -11 ------- Run | Yrd Active Infowar (turns) . | . Robot Analysis Total . | . Derelict Logs Recovered . | . Drone Launches . | . Drone Recoveries . | . Exploration | -11 ------------- Run | Yrd Turns Passed 4142 | 4142 Spaces Moved 494 | 494 Core 6 | 6 Treads 10 | 10 Legs 478 | 478 Wheels . | . Hover . | . Flight . | . Fastest Speed 50 | 50 Average Speed 121 | 121 Slowest Speed 190 | 190 Overloaded Moves . | . Propulsion Burnouts . | . Robots Hopped . | . Potential Cave-ins . | . Cave-ins Triggered . | . Exploration Rate (%) 65 | 65 Regions Visited . Branch Regions . Pre-discovered Areas . | . Known Exits Taken . | . Unknown Exits Taken . | . Scrap Searched . | . Spaces Dug . | . Terrain Destroyed . | . Melee . | . Projectile . | . AOE . | . Terrain Rammed . | . Walls Destroyed . | . Machines Disabled . | . Actions | -11 --------- Run | Yrd Total 4030 | 4030 Wait 3510 | 3510 Move 494 | 494 Hop . | . Pick Up 9 | 9 Fast Attach . | . Attach 6 | 6 Detach . | . Swap 2 | 2 Drop 3 | 3 Fire 6 | 6 Melee . | . Ram . | . Kick . | . Crush . | . Escape Stasis . | . Rewire . | . Trap . | . Miscellaneous . | . Route ------- -11/Scrapyard (discovered 1 exit: [*Mat]) History --------- Turn | Location | Event 5 | -11/Scrapyard | Discovered new exit (range 15) 4071 | -11/Scrapyard | Assembled infested the area 4106 | -11/Scrapyard | Core integrity fell below 50% 4130 | -11/Scrapyard | Core integrity fell below 20% 4143 | -11/Scrapyard | Destroyed by as-44999 with Assembled Heavy Rifle Last Messages --------------- 04081_ K-01 Serf destroyed. 04085_ C-30 ARC bursts open, deploying its payload. 04085_ D-53 Grenadier unfolds itself. 04087_ as-26396 destroyed. 04088_ The unstable cave ceiling collapses. 04088_ as-66074 destroyed. 04089_ K-01 Serf destroyed. 04090_ T-07 Excavator destroyed. 04090_ Acquired 28 matter. 04091_ D-53 Grenadier destroyed. 04093_ Aluminum Leg destroyed. 04099_ The unstable cave ceiling collapses. 04099_ Med. Laser destroyed. 04101_ as-59124 destroyed. 04104_ D-53 Grenadier destroyed. 04108_ The unstable cave ceiling collapses. 04133_ Lgt. Assault Rifle destroyed. 04135_ The unstable cave ceiling collapses. 04141_ Aluminum Leg destroyed. Map ----- +----------------------------------------------------+ | ##### ??# # #?????????????? | | ????## ????# #?????????????? | | ???????????# # #?????????????? | | ???????????# ##########?????????????? | | ???????????# # #???????????????# | | ???????????# ## #???????????????# | | ############ #?????########### | | #?????# # | | ###### #?????# # | | ######## ### ######## #?????# # | | ##????# ## #a% #######??# # | | #????# ## # = #??# # | | #????# ## # #??# # | | #????# ## #??# # | | #????# ## #a #??# # | | #????# ## # # #??####### ### | | #????# ## #???# | | #????# ## # #???# | | #????# ## #???# ####### | | ##????################## t###########???# ####### | | ???????##########???# #??????????# # | | ???????# #???# #??????????# # | | ???????# #???# ############ # | | ???????# = ##### # | | ???????# * = t | | ???????# t @ ### ########### | | ???????# ##### < # ????????# | | ???????# #???# # ??????# | | ???????# #???########## ?????####### | | ???????##########????????????# ?????????? | | ?????????????????????????????# ????????? | | ?????????????????????????????# #???????? | | ?????????????????????????????# #???????? | | ?????????????????????????????#############???????? | | ?????????????????????????????????????????????????? | | ?????????????????????????????????????????????????? | | ?????????????????????????????????????????????????? | | ?????????????????????????????????????????????????? | | ?????????????????????????????????????????????????? | | ?????????????????????????????????????????????????? | | ?????????????????????????????????????????????????? | | ?????????????????????????????????????????????????? | | ?????????????????????????????????????????????????? | | ?????????????????????????????????????????????????? | | ?????????????????????????????????????????????????? | | ?????????????????????????????????????????????????? | | ?????????????????????????????????????????????????? | | ?????????????????????????????????????????????????? | | ?????????????????????????????????????????????????? | | ?????????????????????????????????????????????????? | +----------------------------------------------------+ Best States ------------- Heat Dissipation 25 Energy Generation 10 Energy Capacity 250 Matter Stores 262 Matter Capacity 300 Sight Range 16 Terrain Scan Density 10 Evasion (%) 55 Recoil Reduction 2 Item Schematics ----------------- None Robot Schematics ------------------ None Fabricated ------------ Nothing Repaired ---------- Nothing Alien Tech Used ----------------- None Achievements -------------- Curiosity Killed The Cat Hunted Challenges ------------ None Game ------ Seed TrapReactiveRigger Manual? 0 Play Time 00:09:34 Cumulative 9.3 hours Start 2025.10.10 @ 20:13:56 End 2025.10.10 @ 20:18:54 Sessions 0 Manual Loads 0 Difficulty Rogue Special Mode None Game No. 13 Rogue 13 Adventurer 0 Explorer 0 Win Type - Total 0 Types 0/0/0/0/0/0/0/0/0/0 Lore% 12 Gallery% 16 Achievement% 17 Wizard Run 0 Options --------- Layout 1 ASCII 0 Keyboard 0 Movement Mouse Keybinds 0 Fullscreen 2 Font 24/Proggy Map View 50x35 Zoom Use 0% Tactical HUD 1 Map Filters NONE Filters NONE Steam 1 RUN: 3ffece06-8906-4eb1-8ce0-03e686559ca1